bitfinex-derivatives/quotes_SOLF0:USTF0_20250311
["timestamp","ask_amount","ask_price","bid_price","bid_amount"]
[1741726464551,7.909,126.48,126.43,291.52]
[1741726464746,18.2281496,126.49,126.43,291.52]
[1741726464947,0.05541995,126.47,126.45,0.03094777]
[1741726466152,76.42461144,126.46,126.45,18.25909737]
[1741726466355,43.08044953,126.52,126.45,30.8]
[1741726466552,43.08044953,126.52,126.47,18.2281496]
[1741726466757,43.08044953,126.52,126.49,18.2281496]
[1741726466955,43.08044953,126.52,126.51,7.9067]
[1741726467154,43.08044953,126.52,126.5,30.8]
[1741726467454,43.08044953,126.52,126.51,7.9067]
[1741726467455,43.1410473,126.52,126.51,7.9067]
[1741726467651,43.1410473,126.52,126.5,30.8547485]
[1741726468556,43.1410473,126.52,126.5,38.7616485]
[1741726468854,43.1410473,126.52,126.5,30.8547485]
[1741726469258,43.1410473,126.52,126.51,7.9067]
[1741726470362,43.1410473,126.52,126.5,30.8547485]
[1741726470561,43.1410473,126.52,126.5,38.7618485]
[1741726470766,43.1410473,126.52,126.5,30.8547485]
[1741726470967,43.1410473,126.52,126.51,7.9067]
[1741726471661,18.2281496,126.59,126.52,7.9059]
[1741726471865,1.9762359,126.58,126.52,7.9059]
[1741726472066,1.97618795,126.57,126.53,30.8]
[1741726472266,7.904,126.56,126.53,38.7054]
[1741726472762,7.904,126.56,126.53,38.75688569]
[1741726472763,7.95793353,126.56,126.53,38.75688569]
[1741726472965,0.05393353,126.56,126.53,38.75688569]
[1741726473968,0.05393353,126.56,126.53,30.85148569]
[1741726474470,7.9046,126.55,126.53,30.85148569]
[1741726474671,0.05393353,126.56,126.53,30.85148569]
[1741726475066,7.9046,126.55,126.53,30.85148569]
[1741726475769,0.05393353,126.56,126.53,30.85148569]
[1741726476269,0.05393353,126.56,126.53,38.75658569]
[1741726476767,7.95753353,126.56,126.53,38.75658569]
[1741726476969,7.95753353,126.56,126.53,30.85148569]
[1741726477270,7.9042,126.55,126.53,30.85148569]
[1741726477769,18.2281496,126.59,126.53,30.85148569]
[1741726477960,1.97623366,126.58,126.53,0.05148569]
[1741726478165,1.9764557,126.57,126.54,7.30397663]
[1741726478366,18.2281496,126.59,126.54,7.30397663]
[1741726478567,1.97637274,126.58,126.54,7.30397663]
[1741726478767,7.9042,126.55,126.54,7.30397663]
[1741726479473,0.05714151,126.57,126.53,0.05148569]
[1741726479677,7.9048,126.54,126.53,0.05148569]
[1741726480772,7.9048,126.54,126.53,7.32938734]
[1741726482269,7.9054,126.53,126.52,7.27790165]
[1741726483372,7.96395755,126.54,126.52,7.27790165]
[1741726483572,0.05895755,126.54,126.52,7.27790165]
[1741726483873,0.05895755,126.54,126.52,15.18390165]
[1741726484174,0.05895755,126.54,126.52,30.8]
[1741726484973,7.9054,126.53,126.52,30.8]
[1741726485173,7.9054,126.53,126.51,0.05372041]
[1741726485374,0.05895755,126.54,126.51,7.96042041]
[1741726485574,7.9058,126.53,126.51,0.05372041]
[1741726485775,7.9058,126.53,126.51,32.69613582]
[1741726486774,0.05895755,126.54,126.51,32.69613582]
[1741726487366,0.05895755,126.54,126.52,7.9057]
[1741726487572,0.05895755,126.54,126.52,14.89022555]
[1741726487772,0.05895755,126.54,126.52,6.98452555]
[1741726488071,0.05895755,126.54,126.53,38.7054]
[1741726488378,18.2281496,126.59,126.53,30.8]
[1741726488573,7.9032,126.57,126.54,7.9043]
[1741726488774,18.2281496,126.59,126.53,30.8]
[1741726488973,1.97608985,126.58,126.53,30.8]
[1741726489173,1.97608985,126.57,126.53,30.8]
[1741726489373,0.05248785,126.57,126.54,0.05513302]
[1741726490075,7.95578785,126.57,126.54,7.95993302]
[1741726490275,1.97606004,126.56,126.54,7.95993302]
[1741726490474,1.97606004,126.56,126.54,0.05513302]
[1741726490871,1.97606004,126.56,126.54,7.95963302]
[1741726491369,0.05248785,126.57,126.55,7.9042]
[1741726491571,1.97605976,126.56,126.55,7.9042]
[1741726491876,1.97606207,126.56,126.55,7.9042]
[1741726492480,1.97606207,126.56,126.54,0.05513302]
[1741726492670,1.97606207,126.55,126.54,0.05513302]
[1741726493681,1.97606207,126.55,126.54,7.95993302]
[1741726494172,1.97606207,126.55,126.54,0.05513302]
[1741726494369,9.88026207,126.55,126.54,0.05513302]
[1741726494772,1.97606207,126.55,126.54,0.05513302]
[1741726497279,9.88026207,126.55,126.54,0.05513302]
[1741726497477,20.20421167,126.55,126.5,32.64241541]
[1741726497676,1.97606207,126.54,126.5,32.64241541]
[1741726497875,18.2281496,126.55,126.5,32.64241541]
[1741726497876,7.9067,126.51,126.5,32.64241541]
[1741726498077,9.8831961,126.51,126.5,32.64241541]
[1741726498277,1.9764961,126.51,126.5,32.64241541]
[1741726499078,0.05993012,126.52,126.51,7.9067]
[1741726499382,0.05993012,126.52,126.51,38.6867]
[1741726499880,0.05993012,126.52,126.51,30.78]
[1741726500583,30.78,126.58,126.51,30.78]
[1741726500785,18.2281496,126.59,126.51,30.78]
[1741726501082,7.9039,126.56,126.53,7.9053]
[1741726501786,7.95372136,126.56,126.53,7.96278585]
[1741726502185,7.9045,126.55,126.53,0.05748585]
[1741726502383,0.04982136,126.56,126.53,0.05748585]
[1741726503586,7.9045,126.55,126.53,0.05748585]
[1741726504185,7.95372136,126.56,126.53,7.96288585]
[1741726505388,0.04982136,126.56,126.54,30.78]
[1741726505583,0.04982136,126.56,126.54,38.6845]
[1741726505882,0.04982136,126.56,126.54,30.78]
[1741726506087,0.04982136,126.56,126.55,7.9042]
[1741726507290,0.04982136,126.56,126.54,30.78]
[1741726508188,7.9042,126.55,126.54,30.78]
[1741726510482,7.95382136,126.56,126.54,38.6848]
[1741726510792,0.04982136,126.56,126.54,38.6848]
[1741726511087,1.97596009,126.55,126.54,38.6848]
[1741726515287,18.2281496,126.61,126.54,30.78]
[1741726515784,26.1289496,126.61,126.54,30.78]
[1741726515985,26.1289496,126.61,126.58,7.902]
[1741726516587,26.18161223,126.61,126.58,7.95582287]
[1741726516792,26.18161223,126.61,126.59,7.9017]
[1741726517289,26.18161223,126.61,126.58,7.95582287]
[1741726518090,7.95346263,126.61,126.58,7.95582287]
[1741726518696,0.05266263,126.61,126.6,7.9011]
[1741726519090,0.05266263,126.61,126.6,38.6611]
[1741726520094,0.05266263,126.61,126.6,30.76]
[1741726520493,18.28081223,126.61,126.58,0.05382287]
[1741726520697,26.1298496,126.59,126.58,0.05382287]
[1741726522401,7.9013,126.6,126.58,0.05382287]
[1741726522598,0.05266263,126.61,126.59,30.76]
[1741726522904,0.05266263,126.61,126.6,7.9011]
[1741726523604,18.28081223,126.61,126.58,30.81382287]
[1741726524297,26.18151223,126.61,126.58,30.81382287]
[1741726524703,26.18151223,126.61,126.58,38.71592287]
[1741726525603,0.05266263,126.61,126.58,30.81382287]
[1741726526503,0.05266263,126.61,126.6,7.9011]
[1741726527105,0.05266263,126.61,126.59,7.9014]
[1741726527404,1.97500399,126.6,126.58,30.81382287]
[1741726527704,1.9752191,126.59,126.58,30.81382287]
[1741726528301,1.9752191,126.59,126.58,38.71612287]
[1741726529199,0.05266263,126.61,126.58,30.81382287]
[1741726529393,1.9750263,126.6,126.59,7.9011]
[1741726530397,1.9750263,126.6,126.58,30.81382287]
[1741726530601,1.9750263,126.59,126.58,30.81382287]
[1741726530999,1.9750263,126.59,126.58,38.71612287]
[1741726531201,0.05266263,126.61,126.58,38.71612287]
[1741726531399,1.9749968,126.6,126.58,30.81382287]
[1741726531600,1.9749968,126.59,126.58,0.05382287]
[1741726531803,9.8766968,126.59,126.58,0.05382287]
[1741726532208,1.9749968,126.59,126.58,0.05382287]
[1741726532505,1.9749968,126.59,126.58,7.95612287]
[1741726532908,1.9749968,126.59,126.58,0.05382287]
[1741726533405,18.28081223,126.61,126.58,0.05382287]
[1741726533607,9.87676863,126.6,126.58,0.05382287]
[1741726533806,1.97536863,126.59,126.58,0.05382287]
[1741726534409,1.97537883,126.59,126.58,0.05382287]
[1741726534804,1.97537883,126.59,126.58,7.95612287]
[1741726535608,0.05266263,126.61,126.6,7.9011]
[1741726535808,2.02762391,126.61,126.6,7.9011]
[1741726536811,2.02762391,126.61,126.59,30.74]
[1741726537110,1.97496128,126.6,126.59,30.74]
[1741726538413,9.87606128,126.6,126.59,30.74]
[1741726539012,9.87631676,126.6,126.59,30.74]
[1741726540812,9.87631676,126.6,126.59,38.6417]
[1741726540813,1.97521676,126.6,126.59,38.6417]
[1741726541016,4.1648,126.68,126.59,51.3281496]
[1741726541212,2.0558,126.68,126.61,18.2281496]
[1741726541409,2.0558,126.68,126.62,30.74]
[1741726541807,2.0558,126.68,126.64,7.8982]
[1741726542005,2.0558,126.68,126.65,30.79472781]
[1741726542213,0.05917689,126.67,126.65,30.79472781]
[1741726542908,0.05917689,126.67,126.65,0.05472781]
[1741726544516,0.05917689,126.67,126.65,7.95232781]
[1741726544813,0.05917689,126.67,126.65,0.05472781]
[1741726545014,0.05917689,126.67,126.66,7.8973]
[1741726545215,0.05917689,126.67,126.66,38.6373]
[1741726548817,10.0112,126.71,126.67,7.8962]
[1741726549117,2.1169,126.71,126.66,30.74]
[1741726549316,7.8954,126.7,126.66,30.74]
[1741726549523,2.1169,126.71,126.66,30.74]
[1741726550018,7.8957,126.69,126.67,0.05875786]
[1741726550825,0.05215195,126.7,126.67,0.05875786]
[1741726551022,7.8961,126.68,126.67,0.05875786]
[1741726552322,7.8959,126.69,126.67,0.05875786]
[1741726552726,0.05215195,126.7,126.67,0.05875786]
[1741726553022,7.8961,126.68,126.67,0.05875786]
[1741726553920,7.8958,126.69,126.67,0.05875786]
[1741726555121,0.05215195,126.7,126.67,0.05875786]
[1741726555322,7.8961,126.68,126.67,0.05875786]
[1741726556526,7.8957,126.69,126.67,0.05875786]
[1741726557825,7.8961,126.68,126.67,0.05875786]
[1741726560734,18.2281496,126.69,126.62,32.64241541]
[1741726560930,7.8988,126.64,126.63,30.7]
[1741726561326,7.8992,126.63,126.62,32.64241541]
[1741726562328,7.8992,126.63,126.61,30.75753995]
[1741726562733,0.05848269,126.64,126.61,38.65783995]
[1741726564232,0.05848269,126.64,126.63,7.8992]
[1741726565035,0.05848269,126.64,126.62,7.8995]
[1741726565333,0.05848269,126.64,126.61,30.75753995]
[1741726565737,0.05848269,126.64,126.63,7.8992]
[1741726567040,7.8964,126.68,126.65,7.8975]
[1741726567234,2.0087,126.69,126.65,30.7]
[1741726567440,20.2368496,126.69,126.65,30.7]
[1741726567935,7.8967,126.67,126.66,0.059259]
[1741726569337,7.94720653,126.68,126.66,0.059259]
[1741726569539,0.05080653,126.68,126.66,0.059259]
[1741726570541,7.8967,126.67,126.66,0.059259]
[1741726580947,0.05080653,126.68,126.66,0.059259]
[1741726581639,7.8967,126.67,126.66,0.059259]
[1741726581840,0.05080653,126.68,126.65,30.7]
[1741726582250,11.63862053,126.67,126.65,30.7]
[1741726582445,7.8973,126.66,126.65,30.7]
[1741726583551,19.53562053,126.67,126.65,30.7]
[1741726584549,11.63862053,126.67,126.65,30.7]
[1741726584751,19.53552053,126.67,126.65,30.7]
[1741726585550,11.63862053,126.67,126.65,30.7]
[1741726586251,7.94740653,126.68,126.65,30.7]
[1741726586450,0.05080653,126.68,126.65,30.7]
[1741726586754,7.94690653,126.68,126.65,30.7]
[1741726587253,7.94690653,126.68,126.65,38.5974]
[1741726589455,0.05080653,126.68,126.65,30.7]
[1741726590457,7.8973,126.66,126.65,30.7]
[1741726590760,0.05080653,126.68,126.65,30.7]
[1741726591161,7.8969,126.67,126.65,30.7]
[1741726591958,0.05080653,126.68,126.65,30.7]
[1741726592955,11.63862053,126.67,126.64,0.05972723]
[1741726593359,19.53652053,126.65,126.64,0.05972723]
[1741726593767,7.8998,126.62,126.61,324.23594899]
[1741726593954,11.63862053,126.63,126.61,324.23594899]
[1741726594360,19.53822053,126.63,126.61,324.23594899]
[1741726594859,19.58866732,126.63,126.61,324.29251992]
[1741726596164,7.8998,126.62,126.61,324.29251992]
[1741726596658,19.58856732,126.63,126.61,291.33657093]
[1741726597865,19.58856732,126.63,126.61,0.05657093]
[1741726600463,7.94994679,126.63,126.61,0.05657093]
[1741726600861,7.94994679,126.63,126.61,30.73657093]
[1741726603169,7.8998,126.62,126.61,0.05657093]
[1741726604471,7.94994679,126.63,126.61,0.05657093]
[1741726604670,0.05044679,126.63,126.61,0.05657093]
[1741726605067,7.8998,126.62,126.61,0.05657093]
[1741726607670,7.9022,126.59,126.57,32.95594899]
[1741726607870,7.9022,126.59,126.58,30.68]
[1741726608971,7.9022,126.59,126.57,0.05060529]
[1741726609172,7.9022,126.59,126.57,30.73060529]
[1741726610373,7.9022,126.59,126.57,0.05060529]
[1741726610571,7.9022,126.59,126.57,30.71060529]
[1741726610775,7.9022,126.59,126.57,0.05060529]
[1741726610776,19.54072053,126.59,126.57,0.05060529]
[1741726610968,11.63862053,126.59,126.57,0.05060529]
[1741726611469,7.9023,126.58,126.57,0.05060529]
[1741726612274,19.54062053,126.59,126.57,0.05060529]
[1741726612665,11.63862053,126.59,126.57,0.05060529]
[1741726614177,19.54062053,126.59,126.57,0.05060529]
[1741726614374,0.05921444,126.6,126.57,0.05060529]
[1741726614876,7.96061444,126.6,126.57,7.95310529]
[1741726615475,0.05921444,126.6,126.57,0.05060529]
[1741726615681,7.9018,126.59,126.57,0.05060529]
[1741726617177,7.9023,126.58,126.57,0.05060529]
[1741726619783,11.63862053,126.59,126.55,30.66]
[1741726620080,19.54192053,126.57,126.55,30.66]
[1741726621080,19.59674158,126.57,126.55,30.71599789]
[1741726621471,7.9036,126.56,126.55,30.71599789]
[1741726621770,11.69344158,126.57,126.55,30.71599789]
[1741726622283,19.59684158,126.57,126.55,30.71599789]
[1741726622581,7.95822105,126.57,126.55,30.71599789]
[1741726622783,0.05482105,126.57,126.55,30.71599789]
[1741726623285,7.95772105,126.57,126.55,30.71599789]
[1741726624081,0.05482105,126.57,126.55,30.71599789]
[1741726625686,0.05482105,126.57,126.55,42.35461842]
[1741726626181,0.05482105,126.57,126.56,7.9036]
[1741726628781,11.63862053,126.62,126.55,42.35461842]
[1741726628983,6.3346,126.66,126.59,11.63862053]
[1741726629182,6.3346,126.66,126.6,30.66]
[1741726629387,11.63862053,126.65,126.6,30.66]
[1741726629589,7.8989,126.64,126.6,30.66]
[1741726629787,7.8989,126.64,126.6,42.29862053]
[1741726629990,0.0526309,126.63,126.61,0.04974371]
[1741726630287,0.0526309,126.63,126.61,11.68836424]
[1741726630688,0.0526309,126.63,126.61,7.94984371]
[1741726631389,0.0526309,126.63,126.62,7.8998]
[1741726632592,0.0526309,126.63,126.61,7.94994371]
[1741726632998,0.0526309,126.63,126.61,0.04974371]
[1741726633289,0.0526309,126.63,126.61,7.94984371]
[1741726633889,0.0526309,126.63,126.62,7.8998]
[1741726635384,0.0526309,126.63,126.62,19.53842053]
[1741726635585,19.53562053,126.67,126.62,11.63862053]
[1741726635985,11.63862053,126.67,126.64,7.8982]
[1741726636189,7.8965,126.68,126.64,30.64]
[1741726636687,0.05972835,126.67,126.65,0.0498464]
[1741726637081,0.05972835,126.67,126.65,7.9474464]
[1741726637287,0.05972835,126.67,126.65,0.0498464]
[1741726637592,7.95672835,126.67,126.65,0.0498464]
[1741726638092,0.05972835,126.67,126.65,0.0498464]
[1741726639086,7.95652835,126.67,126.65,0.0498464]
[1741726640293,0.05972835,126.67,126.65,0.0498464]
[1741726640490,7.8973,126.66,126.65,0.0498464]
[1741726641487,11.63862053,126.66,126.61,30.64]
[1741726641693,11.63862053,126.62,126.59,260.74]
[1741726641891,7.9011,126.6,126.59,260.74]
[1741726642087,11.63862053,126.61,126.58,32.95594899]
[1741726642294,11.63862053,126.61,126.58,63.59594899]
[1741726642491,7.9014,126.6,126.58,63.64838865]
[1741726643096,7.9014,126.6,126.58,30.69243966]
[1741726643492,7.9014,126.6,126.58,0.05243966]
[1741726643695,7.9014,126.6,126.58,30.69243966]
[1741726645097,19.54032053,126.59,126.58,0.05243966]
[1741726645291,11.63862053,126.6,126.58,0.05243966]
[1741726646193,19.54002053,126.6,126.58,0.05243966]
[1741726646399,11.63862053,126.6,126.58,0.05243966]
[1741726646699,7.9017,126.59,126.58,0.05243966]
[1741726650803,19.54002053,126.6,126.58,0.05243966]
[1741726652001,7.9017,126.59,126.58,0.05243966]
[1741726653407,11.69291202,126.61,126.58,0.05243966]
[1741726653704,7.9014,126.6,126.58,0.05243966]
[1741726654397,11.69291202,126.61,126.58,0.05243966]
[1741726655404,7.9014,126.6,126.58,0.05243966]
[1741726657003,7.9017,126.59,126.58,0.05243966]
[1741726666809,7.9017,126.59,126.53,282.27882053]
[1741726666810,11.63862053,126.59,126.53,282.27882053]
[1741726667107,7.9034,126.57,126.54,30.62]
[1741726667708,7.9034,126.57,126.54,38.5245]
[1741726668011,7.96189179,126.57,126.54,38.58376919]
[1741726668913,0.05849179,126.57,126.54,30.67926919]
[1741726669214,0.05849179,126.57,126.56,7.9036]
[1741726673908,0.05849179,126.57,126.54,0.05926919]
[1741726674113,7.9038,126.56,126.54,30.67926919]
[1741726674918,7.9038,126.56,126.55,30.6]
[1741726676007,0.05849179,126.57,126.55,30.6]
[1741726676210,7.96179179,126.57,126.55,30.6]
[1741726678819,7.96179179,126.57,126.54,7.96406919]
[1741726679013,7.96179179,126.57,126.55,30.6]
[1741726680021,0.05849179,126.57,126.55,38.5041]
[1741726680222,0.05849179,126.57,126.55,30.6]
[1741726680421,0.05849179,126.57,126.56,19.54222053]
[1741726682127,13.63132053,126.63,126.56,11.63862053]
[1741726682331,13.63132053,126.63,126.58,7.9018]
[1741726682531,7.9007,126.61,126.58,38.5018]
[1741726683130,7.9007,126.61,126.58,30.6]
[1741726683330,7.95459165,126.61,126.58,30.65687305]
[1741726685527,0.05389165,126.61,126.58,30.65687305]
[1741726685729,7.9011,126.6,126.58,30.65687305]
[1741726686932,7.95469165,126.61,126.58,30.65687305]
[1741726687129,7.95469165,126.61,126.58,38.55907305]
[1741726687830,7.95469165,126.61,126.58,30.65687305]
[1741726688133,7.9011,126.6,126.58,30.65687305]
[1741726689534,7.95469165,126.61,126.58,30.65687305]
[1741726690036,0.05389165,126.61,126.58,30.65687305]
[1741726690238,7.9011,126.6,126.58,30.65687305]
[1741726690836,0.05389165,126.61,126.58,30.65687305]
[1741726691140,7.95459165,126.61,126.58,38.55907305]
[1741726691735,0.05389165,126.61,126.58,42.29549358]
[1741726692338,0.05389165,126.61,126.58,11.69549358]
[1741726692537,0.05389165,126.61,126.59,30.58]
[1741726692739,0.05389165,126.61,126.59,38.4811]
[1741726694041,0.05389165,126.61,126.59,30.58]
[1741726694242,7.95449165,126.61,126.59,30.58]
[1741726694541,0.05389165,126.61,126.59,30.58]
[1741726694842,0.05389165,126.61,126.59,38.4812]
[1741726695343,0.05389165,126.61,126.59,30.58]
[1741726695543,7.8989,126.64,126.6,11.63862053]
[1741726696238,7.8989,126.64,126.61,7.9002]
[1741726696840,7.95643751,126.64,126.61,7.95873373]
[1741726697437,0.05753751,126.64,126.61,0.05853373]
[1741726697641,0.05753751,126.64,126.62,30.58]
[1741726698343,0.05753751,126.64,126.62,38.4795]
[1741726698538,0.05753751,126.64,126.62,30.58]
[1741726698936,7.95633751,126.64,126.62,30.58]
[1741726699238,0.05753751,126.64,126.62,30.58]
[1741726701043,7.95613751,126.64,126.62,30.58]
[1741726701244,0.05753751,126.64,126.62,30.58]
[1741726702144,7.8992,126.63,126.62,30.58]
[1741726702445,0.05753751,126.64,126.62,30.58]
[1741726702643,7.95643751,126.64,126.62,30.58]
[1741726703644,7.8992,126.63,126.62,30.58]
[1741726704548,0.05753751,126.64,126.62,30.58]
[1741726704749,7.95643751,126.64,126.62,30.58]
[1741726706344,7.8992,126.63,126.62,30.58]
[1741726707044,0.05753751,126.64,126.62,30.58]
[1741726707248,7.95643751,126.64,126.62,30.58]
[1741726708639,7.8992,126.63,126.62,30.58]
[1741726709045,0.05753751,126.64,126.62,30.58]
[1741726709347,7.95663751,126.64,126.62,30.58]
[1741726709550,0.05753751,126.64,126.61,0.05853373]
[1741726709744,0.05753751,126.64,126.61,30.61853373]
[1741726709945,7.8992,126.63,126.61,30.61853373]
[1741726710144,0.05753751,126.64,126.61,30.61853373]
[1741726710344,0.05753751,126.64,126.62,11.63862053]
[1741726710944,0.05753751,126.64,126.61,30.61853373]
[1741726711150,7.95653751,126.64,126.61,30.61853373]
[1741726711350,0.05753751,126.64,126.61,30.61853373]
[1741726712954,7.95643751,126.64,126.61,30.61853373]
[1741726713150,0.05753751,126.64,126.61,30.61853373]
[1741726713750,11.69615804,126.64,126.61,30.61853373]
[1741726713951,11.69615804,126.64,126.61,0.05853373]
[1741726714456,11.63862053,126.62,126.59,30.56]
[1741726714846,11.69615804,126.64,126.59,30.56]
[1741726715046,0.05753751,126.64,126.6,11.63862053]
[1741726715250,0.05753751,126.64,126.61,7.9]
[1741726715450,0.05753751,126.64,126.61,7.95692958]
[1741726716045,7.95643751,126.64,126.61,0.05692958]
[1741726717254,7.8992,126.63,126.61,0.05692958]
[1741726719055,7.8998,126.62,126.61,0.05692958]
[1741726720554,0.05753751,126.64,126.61,0.05692958]
[1741726721951,7.8998,126.62,126.61,0.05692958]
[1741726723359,0.05753751,126.64,126.61,0.05692958]
[1741726723560,0.05753751,126.64,126.62,30.54]
[1741726724258,7.8996,126.63,126.62,30.54]
[1741726724463,0.05753751,126.64,126.62,30.54]
[1741726724963,7.95633751,126.64,126.62,30.54]
[1741726725161,0.05753751,126.64,126.62,30.54]
[1741726725563,7.8992,126.63,126.62,30.54]
[1741726726762,7.8998,126.62,126.61,0.05692958]
[1741726726965,19.53842053,126.62,126.61,0.05692958]
[1741726727158,11.63862053,126.62,126.58,63.49594899]
[1741726728264,0.0506126,126.61,126.59,0.05633499]
[1741726729161,7.9011,126.6,126.59,0.05633499]
[1741726729661,0.0506126,126.61,126.59,0.05633499]
[1741726730161,0.0506126,126.61,126.6,11.63862053]
[1741726730563,0.0506126,126.61,126.6,19.53972053]
[1741726730752,2.0398,126.67,126.6,11.63862053]
[1741726730959,7.8976,126.66,126.63,11.63862053]
[1741726732063,7.95305108,126.66,126.63,11.69369635]
[1741726732856,0.05545108,126.66,126.63,0.05507582]
[1741726733061,11.63862053,126.65,126.57,11.63862053]
[1741726733355,11.63862053,126.62,126.58,30.54]
[1741726733558,19.53752053,126.64,126.58,30.54]
[1741726733760,2.0398,126.67,126.59,11.63862053]
[1741726733958,7.9008,126.61,126.58,42.17862053]
[1741726734164,7.9535565,126.61,126.6,32.95594899]
[1741726734367,0.0527565,126.61,126.6,32.95594899]
[1741726734761,11.69137703,126.61,126.6,32.95594899]
[1741726734962,19.59177703,126.61,126.6,32.95594899]
[1741726735670,11.69137703,126.61,126.6,32.95594899]
[1741726736065,11.69137703,126.61,126.58,95.84212679]
[1741726736265,11.69137703,126.61,126.58,7.95959614]
[1741726736665,0.0527565,126.61,126.58,0.05739614]
[1741726736866,0.0527565,126.61,126.58,11.69601667]
[1741726737873,0.0527565,126.61,126.59,7.9014]
[1741726738074,0.0527565,126.61,126.6,30.54]
[1741726738673,73.66606091,126.71,126.6,44.53862053]
[1741726738874,11.63862053,126.69,126.63,11.63862053]
[1741726739075,11.63862053,126.69,126.64,30.54]
[1741726739274,7.8973,126.66,126.64,30.54]
[1741726739478,11.63862053,126.67,126.64,30.54]
[1741726739672,7.8979,126.65,126.64,30.54]
[1741726739877,7.8979,126.65,126.64,30.59784452]
[1741726740279,7.8976,126.66,126.64,30.59784452]
[1741726741076,0.05815497,126.67,126.64,30.59784452]
[1741726741281,7.8979,126.65,126.64,30.59784452]
[1741726743675,7.8979,126.65,126.64,0.05784452]
[1741726744980,11.63862053,126.66,126.64,0.05784452]
[1741726745283,19.53632053,126.66,126.64,0.05784452]
[1741726747672,7.8979,126.65,126.64,0.05784452]
[1741726751382,0.05815497,126.67,126.64,0.05784452]
[1741726751885,0.05815497,126.67,126.65,7.8977]
[1741726754090,193.9682,126.72,126.65,7.8977]
[1741726754091,1.9682,126.72,126.66,30.52]
[1741726754293,11.63862053,126.73,126.68,11.63862053]
[1741726754592,11.63862053,126.73,126.69,30.52]
[1741726754987,19.53172053,126.73,126.69,38.415]
[1741726755288,0.05738195,126.72,126.7,0.05137903]
[1741726756789,11.63862053,126.71,126.69,30.52]
[1741726756991,11.63862053,126.71,126.64,11.63862053]
[1741726756992,11.63862053,126.7,126.64,11.63862053]
[1741726757189,11.63862053,126.69,126.65,30.5]
[1741726757393,11.63862053,126.68,126.65,30.5]
[1741726757895,11.63862053,126.68,126.65,30.55866541]
[1741726758190,7.897,126.67,126.65,30.55866541]
[1741726758787,11.63862053,126.66,126.65,0.05866541]
[1741726759292,19.53592053,126.66,126.65,0.05866541]
[1741726761195,7.9001,126.62,126.61,30.5]
[1741726761396,7.9001,126.62,126.59,11.63862053]
[1741726761597,7.9001,126.62,126.6,30.5]
[1741726762494,7.95224834,126.62,126.6,30.55814023]
[1741726762895,7.9004,126.61,126.6,30.55814023]
[1741726763588,7.9004,126.61,126.6,0.05814023]
[1741726767092,11.69076887,126.62,126.6,0.05814023]
[1741726767299,19.59086887,126.62,126.6,0.05814023]
[1741726767800,11.69076887,126.62,126.6,0.05814023]
[1741726767989,0.05214834,126.62,126.6,0.05814023]
[1741726768895,0.05214834,126.62,126.61,7.9004]
[1741726770003,11.63862053,126.66,126.61,19.53902053]
[1741726770201,7.899,126.64,126.62,30.5]
[1741726770394,11.63862053,126.66,126.62,30.5]
[1741726770794,7.8989,126.64,126.62,30.5]
[1741726771101,7.95475982,126.64,126.62,30.5520465]
[1741726772303,7.95475982,126.64,126.62,0.0520465]
[1741726772502,7.95475982,126.64,126.62,30.5520465]
[1741726773098,0.05585982,126.64,126.62,30.5520465]
[1741726774002,0.05585982,126.64,126.62,38.4512465]
[1741726774305,0.05585982,126.64,126.62,30.5520465]
[1741726774905,0.05585982,126.64,126.62,38.4515465]
[1741726775106,0.05585982,126.64,126.62,30.5520465]
[1741726775708,0.05585982,126.64,126.63,30.5]
[1741726777111,0.05585982,126.64,126.63,38.3992]
[1741726778109,19.53572053,126.67,126.63,30.5]
[1741726778308,19.53572053,126.67,126.64,7.8985]
[1741726779008,7.8974,126.66,126.63,38.399]
[1741726779207,0.05336168,126.66,126.63,30.5]
[1741726780410,11.63862053,126.65,126.63,30.5]
[1741726780809,7.8992,126.63,126.62,0.0520465]
[1741726784118,11.63862053,126.61,126.58,17.53844899]
[1741726785020,11.63862053,126.61,126.58,17.59589789]
[1741726785815,7.9017,126.59,126.58,17.59589789]
[1741726786419,19.54032053,126.59,126.58,17.59589789]
[1741726786815,19.54032053,126.59,126.58,0.0574489]
[1741726792525,7.9032,126.57,126.54,42.11862053]
[1741726793625,7.95908921,126.57,126.54,42.17287999]
[1741726794121,7.95908921,126.57,126.54,11.69287999]
[1741726794320,7.95908921,126.57,126.54,0.05425946]
[1741726794321,7.9042,126.55,126.54,0.05425946]